[Event "*** Titled Tuesday Blitz"]
[Site "Chess.com"]
[Date "2020.05.19"]
[Round "9"]
[White "Lubov_Gordyk"]
[Black "colonelcassad"]
[Result "1-0"]
[WhiteElo "2621"]
[BlackElo "2413"]
[TimeControl "180+1"]
[EndTime "13:45:44 PDT"]
[Termination "Lubov_Gordyk won by resignation"]

1. e4 {[%clk 0:03:00.9]} 1... d6 {[%clk 0:02:59.6]} 2. d4 {[%clk 0:03:00.4]}
2... Nf6 {[%clk 0:02:58.9]} 3. Nc3 {[%clk 0:03:00.4]} 3... c6 {[%clk 0:02:59.2]}
4. a4 {[%clk 0:02:59.6]} 4... g6 {[%clk 0:02:59.1]} 5. h3 {[%clk 0:02:58.9]}
5... Bg7 {[%clk 0:02:59.4]} 6. g4 {[%clk 0:02:58.4]} 6... e5 {[%clk 0:02:58.1]}
7. Nge2 {[%clk 0:02:57.7]} 7... Nbd7 {[%clk 0:02:49.1]} 8. Bg2 {[%clk 0:02:57]}
8... O-O {[%clk 0:02:36.3]} 9. O-O {[%clk 0:02:56.1]} 9... Re8 {[%clk
0:02:36.6]} 10. Be3 {[%clk 0:02:55.7]} 10... Qc7 {[%clk 0:02:30.9]} 11. Ng3
{[%clk 0:02:55.3]} 11... d5 {[%clk 0:02:09.3]} 12. exd5 {[%clk 0:02:45.6]} 12...
cxd5 {[%clk 0:02:07.9]} 13. g5 {[%clk 0:02:39.7]} 13... Ne4 {[%clk 0:01:53.4]}
14. Nxd5 {[%clk 0:02:36.5]} 14... Qc4 {[%clk 0:01:48.5]} 15. Nxe4 {[%clk
0:02:23.4]} 15... Qxd5 {[%clk 0:01:10.9]} 16. Nf6+ {[%clk 0:02:19.6]} 16... Nxf6
{[%clk 0:01:11.3]} 17. gxf6 {[%clk 0:02:09.4]} 17... e4 {[%clk 0:00:48.6]} 18.
fxg7 {[%clk 0:02:07.9]} 18... Bf5 {[%clk 0:00:31.5]} 19. Qd2 {[%clk 0:02:04]}
19... Re6 {[%clk 0:00:29.4]} 20. b3 {[%clk 0:02:00.1]} 20... Qd7 {[%clk
0:00:24.3]} 21. Kh2 {[%clk 0:01:53.8]} 21... g5 {[%clk 0:00:17.2]} 22. Bxg5
{[%clk 0:01:46.6]} 22... Rg6 {[%clk 0:00:17.4]} 23. Rg1 {[%clk 0:01:36.9]} 23...
h6 {[%clk 0:00:14.9]} 24. Bf4 {[%clk 0:01:32.2]} 24... Re8 {[%clk 0:00:13]} 25.
Qe3 {[%clk 0:01:30.9]} 25... Qc8 {[%clk 0:00:09.9]} 26. c4 {[%clk 0:01:27.3]}
26... Kh7 {[%clk 0:00:10.1]} 27. Bf1 {[%clk 0:01:26]} 27... Rg8 {[%clk
0:00:08.5]} 28. Rxg6 {[%clk 0:01:22.4]} 28... fxg6 {[%clk 0:00:07.8]} 29. Bxh6
{[%clk 0:01:21.9]} 29... g5 {[%clk 0:00:06.5]} 30. Qxg5 {[%clk 0:01:19.3]} 30...
Bg6 {[%clk 0:00:05.8]} 31. Qe3 {[%clk 0:01:16.8]} 31... Qc7+ {[%clk 0:00:05.9]}
32. Bf4 {[%clk 0:01:15.6]} 32... Qf7 {[%clk 0:00:06.6]} 33. Be5 {[%clk
0:01:15.4]} 33... Qe6 {[%clk 0:00:06.4]} 34. Bg2 {[%clk 0:01:14.6]} 1-0

[Event "*** Titled Tuesday Blitz"]
[Site "Chess.com"]
[Date "2020.05.19"]
[Round "9"]
[White "allvim"]
[Black "SergioGarciaFuentes"]
[Result "0-1"]
[WhiteElo "2234"]
[BlackElo "2128"]
[TimeControl "180+1"]
[EndTime "13:45:46 PDT"]
[Termination "SergioGarciaFuentes won by checkmate"]

1. e4 {[%clk 0:03:00.9]} 1... e5 {[%clk 0:02:57]} 2. f4 {[%clk 0:02:59]} 2... d5
{[%clk 0:02:52.7]} 3. exd5 {[%clk 0:02:56.6]} 3... exf4 {[%clk 0:02:52.7]} 4.
Nf3 {[%clk 0:02:55.7]} 4... Nf6 {[%clk 0:02:52]} 5. Be2 {[%clk 0:02:48.2]} 5...
Nxd5 {[%clk 0:02:42.6]} 6. O-O {[%clk 0:02:48]} 6... Bd6 {[%clk 0:02:11.9]} 7.
d4 {[%clk 0:02:47]} 7... O-O {[%clk 0:01:57.7]} 8. c4 {[%clk 0:02:41.1]} 8...
Ne3 {[%clk 0:01:57.6]} 9. Bxe3 {[%clk 0:02:35.8]} 9... fxe3 {[%clk 0:01:58.5]}
10. Nc3 {[%clk 0:02:35.4]} 10... Nc6 {[%clk 0:01:27.3]} 11. a3 {[%clk
0:02:22.9]} 11... Bg4 {[%clk 0:01:16.1]} 12. Rc1 {[%clk 0:02:13.5]} 12... Bxf3
{[%clk 0:01:12]} 13. Bxf3 {[%clk 0:02:13.2]} 13... Nxd4 {[%clk 0:01:12.3]} 14.
Bxb7 {[%clk 0:01:57.6]} 14... Rb8 {[%clk 0:01:05.2]} 15. Bd5 {[%clk 0:01:58.2]}
15... Qh4 {[%clk 0:00:34.6]} 16. g3 {[%clk 0:01:52.5]} 16... Bxg3 {[%clk
0:00:34.8]} 17. hxg3 {[%clk 0:01:53.4]} 17... Qxg3+ {[%clk 0:00:34.9]} 18. Bg2
{[%clk 0:01:54.1]} 18... Rxb2 {[%clk 0:00:32.6]} 19. Rc2 {[%clk 0:01:20.4]}
19... Rxc2 {[%clk 0:00:31.6]} 20. Qxc2 {[%clk 0:01:20.8]} 20... Nxc2 {[%clk
0:00:30.9]} 21. Ne2 {[%clk 0:01:21.5]} 21... Qg4 {[%clk 0:00:29.8]} 22. Nf4
{[%clk 0:01:17.2]} 22... Nd4 {[%clk 0:00:27.2]} 23. Nd5 {[%clk 0:01:12.2]} 23...
e2 {[%clk 0:00:25.1]} 24. Rb1 {[%clk 0:01:00.7]} 24... Re8 {[%clk 0:00:23.4]}
25. Ne3 {[%clk 0:00:53.6]} 25... Qg5 {[%clk 0:00:19.6]} 26. Kf2 {[%clk
0:00:35.8]} 26... Qxe3+ {[%clk 0:00:18.7]} 27. Ke1 {[%clk 0:00:36.4]} 27... Nc2#
{[%clk 0:00:18.9]} 0-1

[Event "*** Titled Tuesday Blitz"]
[Site "Chess.com"]
[Date "2020.05.19"]
[Round "9"]
[White "anon569"]
[Black "Gerodot71"]
[Result "0-1"]
[WhiteElo "2257"]
[BlackElo "2382"]
[TimeControl "180+1"]
[EndTime "13:45:51 PDT"]
[Termination "Gerodot71 won on time"]

1. e4 {[%clk 0:03:00.9]} 1... e5 {[%clk 0:02:59.9]} 2. Nf3 {[%clk 0:02:59.8]}
2... Nc6 {[%clk 0:03:00.1]} 3. Bb5 {[%clk 0:02:58.2]} 3... a6 {[%clk 0:02:59.9]}
4. Ba4 {[%clk 0:02:57.5]} 4... Nf6 {[%clk 0:02:58.7]} 5. O-O {[%clk 0:02:57.6]}
5... Be7 {[%clk 0:02:58.8]} 6. Re1 {[%clk 0:02:55.7]} 6... b5 {[%clk 0:02:58.8]}
7. Bb3 {[%clk 0:02:55.4]} 7... d6 {[%clk 0:02:59.3]} 8. h3 {[%clk 0:02:52]} 8...
O-O {[%clk 0:02:58.9]} 9. c3 {[%clk 0:02:52]} 9... Nb8 {[%clk 0:02:58.4]} 10. d4
{[%clk 0:02:50.7]} 10... Nbd7 {[%clk 0:02:58.3]} 11. Nbd2 {[%clk 0:02:49.2]}
11... Bb7 {[%clk 0:02:58.2]} 12. Bc2 {[%clk 0:02:47.2]} 12... Re8 {[%clk
0:02:57.9]} 13. Nf1 {[%clk 0:02:46.9]} 13... Bf8 {[%clk 0:02:57.9]} 14. Ng3
{[%clk 0:02:46.9]} 14... g6 {[%clk 0:02:57.8]} 15. a4 {[%clk 0:02:45.3]} 15...
Bg7 {[%clk 0:02:56.6]} 16. d5 {[%clk 0:02:42.1]} 16... Nb6 {[%clk 0:02:48.7]}
17. a5 {[%clk 0:02:25.1]} 17... Nbd7 {[%clk 0:02:47.8]} 18. Be3 {[%clk
0:02:23.9]} 18... Qe7 {[%clk 0:02:44.9]} 19. Qd2 {[%clk 0:02:22.7]} 19... c6
{[%clk 0:02:44.2]} 20. dxc6 {[%clk 0:02:20.5]} 20... Bxc6 {[%clk 0:02:45.1]} 21.
Red1 {[%clk 0:02:17.7]} 21... Bf8 {[%clk 0:02:44.3]} 22. Bh6 {[%clk 0:02:09.5]}
22... Rad8 {[%clk 0:02:42.5]} 23. Bg5 {[%clk 0:01:49.2]} 23... h6 {[%clk
0:02:36.4]} 24. Bxh6 {[%clk 0:01:44.3]} 24... Nc5 {[%clk 0:02:34.7]} 25. Bg5
{[%clk 0:01:38.3]} 25... Qe6 {[%clk 0:02:29.6]} 26. Qe2 {[%clk 0:01:19.9]} 26...
Bg7 {[%clk 0:02:15.8]} 27. Nh4 {[%clk 0:01:06.5]} 27... d5 {[%clk 0:02:10.3]}
28. exd5 {[%clk 0:01:04.7]} 28... Bxd5 {[%clk 0:02:11.2]} 29. Qe3 {[%clk
0:00:51.2]} 29... Qc6 {[%clk 0:02:06.8]} 30. Rd2 {[%clk 0:00:20.4]} 30... Ne6
{[%clk 0:02:01.6]} 31. Bh6 {[%clk 0:00:17.6]} 31... Nf4 {[%clk 0:01:54.8]} 32.
Bxf4 {[%clk 0:00:10.9]} 32... exf4 {[%clk 0:01:55.7]} 33. Qxf4 {[%clk
0:00:11.3]} 33... Be6 {[%clk 0:01:50.4]} 34. Nxg6 {[%clk 0:00:08.5]} 34... fxg6
{[%clk 0:01:49.6]} 35. Bxg6 {[%clk 0:00:08.9]} 35... Rxd2 {[%clk 0:01:45.3]} 36.
Bxe8 {[%clk 0:00:07.8]} 36... Qd6 {[%clk 0:01:43.6]} 37. Qh4 {[%clk 0:00:05.4]}
37... Nxe8 {[%clk 0:01:42.5]} 38. Ne4 {[%clk 0:00:03.1]} 38... Rd1+ {[%clk
0:01:41.5]} 39. Rxd1 {[%clk 0:00:01.8]} 39... Qxd1+ {[%clk 0:01:42.4]} 40. Kh2
{[%clk 0:00:02.5]} 40... Qd5 {[%clk 0:01:42.4]} 41. f3 {[%clk 0:00:01.7]} 41...
Qe5+ {[%clk 0:01:39.8]} 42. g3 {[%clk 0:00:01.4]} 42... Nf6 {[%clk 0:01:39.4]}
0-1

[Event "*** Titled Tuesday Blitz"]
[Site "Chess.com"]
[Date "2020.05.19"]
[Round "9"]
[White "WildTricks"]
[Black "frankshar"]
[Result "1-0"]
[WhiteElo "2538"]
[BlackElo "2376"]
[TimeControl "180+1"]
[EndTime "13:45:54 PDT"]
[Termination "WildTricks won by checkmate"]

1. Nf3 {[%clk 0:03:00.9]} 1... Nf6 {[%clk 0:02:59.3]} 2. g3 {[%clk 0:03:00.9]}
2... e6 {[%clk 0:02:59.7]} 3. Bg2 {[%clk 0:03:01.2]} 3... d5 {[%clk 0:03:00.3]}
4. O-O {[%clk 0:03:02.1]} 4... Be7 {[%clk 0:03:00.1]} 5. c4 {[%clk 0:03:03]}
5... O-O {[%clk 0:02:59.7]} 6. d4 {[%clk 0:03:03.6]} 6... dxc4 {[%clk
0:02:56.3]} 7. Ne5 {[%clk 0:03:03.8]} 7... c5 {[%clk 0:02:54.9]} 8. dxc5 {[%clk
0:03:02]} 8... Qc7 {[%clk 0:02:53.6]} 9. Nxc4 {[%clk 0:03:01.1]} 9... Rd8 {[%clk
0:02:52.9]} 10. Qc2 {[%clk 0:03:00.8]} 10... Bxc5 {[%clk 0:02:16.3]} 11. Nc3
{[%clk 0:03:00.2]} 11... Bxf2+ {[%clk 0:02:05.4]} 12. Rxf2 {[%clk 0:03:01.1]}
12... Qxc4 {[%clk 0:02:05.3]} 13. Bg5 {[%clk 0:03:01.3]} 13... Nbd7 {[%clk
0:01:57.6]} 14. Raf1 {[%clk 0:03:00.2]} 14... Qc5 {[%clk 0:01:49.3]} 15. Qd2
{[%clk 0:02:59.1]} 15... Rf8 {[%clk 0:01:39.2]} 16. b4 {[%clk 0:02:31.2]} 16...
Qxb4 {[%clk 0:01:16.9]} 17. h3 {[%clk 0:01:04.8]} 17... Qc5 {[%clk 0:00:58.2]}
18. Kh2 {[%clk 0:00:59.8]} 18... Rb8 {[%clk 0:00:46.6]} 19. Bf4 {[%clk
0:00:49.7]} 19... e5 {[%clk 0:00:36.3]} 20. Bg5 {[%clk 0:00:49.3]} 20... b6
{[%clk 0:00:21.8]} 21. Rxf6 {[%clk 0:00:48.7]} 21... Nxf6 {[%clk 0:00:21.1]} 22.
Rxf6 {[%clk 0:00:48.1]} 22... gxf6 {[%clk 0:00:18.5]} 23. Bxf6 {[%clk
0:00:47.8]} 23... e4 {[%clk 0:00:17]} 24. Qh6 {[%clk 0:00:37.6]} 24... Qg1+
{[%clk 0:00:09.7]} 25. Kxg1 {[%clk 0:00:36.6]} 25... Bf5 {[%clk 0:00:08.7]} 26.
Qg7# {[%clk 0:00:36.1]} 1-0

[Event "*** Titled Tuesday Blitz"]
[Site "Chess.com"]
[Date "2020.05.19"]
[Round "9"]
[White "CzechmVIII"]
[Black "Kopytkin"]
[Result "0-1"]
[WhiteElo "2190"]
[BlackElo "2328"]
[TimeControl "180+1"]
[EndTime "13:45:54 PDT"]
[Termination "Kopytkin won by resignation"]

1. e4 {[%clk 0:03:00.9]} 1... Nf6 {[%clk 0:02:58.3]} 2. e5 {[%clk 0:03:00.3]}
2... Nd5 {[%clk 0:02:58.5]} 3. d4 {[%clk 0:03:00.5]} 3... d6 {[%clk 0:02:59]} 4.
Nf3 {[%clk 0:03:00.6]} 4... g6 {[%clk 0:02:58.6]} 5. Bc4 {[%clk 0:02:57.3]} 5...
Nb6 {[%clk 0:02:58.4]} 6. Bb3 {[%clk 0:02:56.6]} 6... d5 {[%clk 0:02:58.9]} 7.
a4 {[%clk 0:02:47.1]} 7... Bg7 {[%clk 0:02:55.5]} 8. a5 {[%clk 0:02:42.6]} 8...
Nc4 {[%clk 0:02:55.5]} 9. O-O {[%clk 0:02:37]} 9... O-O {[%clk 0:02:55.4]} 10.
Nbd2 {[%clk 0:02:18.4]} 10... b5 {[%clk 0:02:34.3]} 11. axb6 {[%clk 0:02:12.8]}
11... Nxb6 {[%clk 0:02:33.9]} 12. c3 {[%clk 0:02:10]} 12... a5 {[%clk
0:02:33.9]} 13. Re1 {[%clk 0:01:58.7]} 13... Bf5 {[%clk 0:02:29]} 14. Nf1 {[%clk
0:01:55.7]} 14... N8d7 {[%clk 0:02:13]} 15. Ne3 {[%clk 0:01:50.1]} 15... e6
{[%clk 0:02:08.3]} 16. Nxf5 {[%clk 0:01:44]} 16... gxf5 {[%clk 0:01:53.6]} 17.
Bg5 {[%clk 0:01:39.2]} 17... f6 {[%clk 0:01:40.9]} 18. exf6 {[%clk 0:01:37.5]}
18... Bxf6 {[%clk 0:01:41.2]} 19. Qd2 {[%clk 0:01:20.8]} 19... Re8 {[%clk
0:01:35.2]} 20. Bxf6 {[%clk 0:01:12.5]} 20... Qxf6 {[%clk 0:01:34.6]} 21. Ne5
{[%clk 0:01:08.9]} 21... Nxe5 {[%clk 0:01:32.8]} 22. Rxe5 {[%clk 0:01:05.1]}
22... a4 {[%clk 0:01:30.9]} 23. Bc2 {[%clk 0:00:56]} 23... Nc4 {[%clk
0:01:28.9]} 24. Qe2 {[%clk 0:00:47.5]} 24... Nxe5 {[%clk 0:01:28.5]} 25. dxe5
{[%clk 0:00:47.7]} 25... Qg5 {[%clk 0:01:24.3]} 26. g3 {[%clk 0:00:35.1]} 26...
Reb8 {[%clk 0:00:59.1]} 27. f4 {[%clk 0:00:28.1]} 27... Qe7 {[%clk 0:00:57.3]}
28. Rxa4 {[%clk 0:00:27.3]} 28... Qe8 {[%clk 0:00:54.1]} 29. Rxa8 {[%clk
0:00:19.1]} 29... Rxa8 {[%clk 0:00:55]} 30. Qg2 {[%clk 0:00:16.9]} 30... Qh5
{[%clk 0:00:50.9]} 31. Qd2 {[%clk 0:00:15.3]} 31... Qf3 {[%clk 0:00:48.4]} 32.
Qg2 {[%clk 0:00:09]} 32... Ra1+ {[%clk 0:00:46]} 0-1

[Event "*** Titled Tuesday Blitz"]
[Site "Chess.com"]
[Date "2020.05.19"]
[Round "9"]
[White "VladimirBugayev"]
[Black "robertofabregas"]
[Result "1-0"]
[WhiteElo "2245"]
[BlackElo "2102"]
[TimeControl "180+1"]
[EndTime "13:45:54 PDT"]
[Termination "VladimirBugayev won by resignation"]

1. e4 {[%clk 0:03:00.9]} 1... c5 {[%clk 0:02:59.9]} 2. a3 {[%clk 0:03:00.5]}
2... d6 {[%clk 0:02:59]} 3. Nc3 {[%clk 0:02:59.3]} 3... Nc6 {[%clk 0:02:59.4]}
4. Bc4 {[%clk 0:02:59.7]} 4... g6 {[%clk 0:02:58.4]} 5. h4 {[%clk 0:02:58.6]}
5... Nf6 {[%clk 0:02:57.8]} 6. d3 {[%clk 0:02:57.7]} 6... Bg7 {[%clk 0:02:57.7]}
7. Nge2 {[%clk 0:02:50.3]} 7... a6 {[%clk 0:02:53.8]} 8. Ng3 {[%clk 0:02:49.8]}
8... b5 {[%clk 0:02:47.9]} 9. Bd5 {[%clk 0:02:48.7]} 9... Nxd5 {[%clk
0:02:40.4]} 10. Nxd5 {[%clk 0:02:48.4]} 10... e6 {[%clk 0:02:30.1]} 11. Ne3
{[%clk 0:02:37.9]} 11... h5 {[%clk 0:02:24]} 12. c3 {[%clk 0:02:15.5]} 12... Rb8
{[%clk 0:01:58.9]} 13. Bd2 {[%clk 0:02:13.1]} 13... Bd7 {[%clk 0:01:42.6]} 14.
f4 {[%clk 0:02:05.7]} 14... b4 {[%clk 0:01:31.3]} 15. axb4 {[%clk 0:02:02.7]}
15... cxb4 {[%clk 0:01:31.8]} 16. Rxa6 {[%clk 0:01:53.5]} 16... bxc3 {[%clk
0:01:19.4]} 17. bxc3 {[%clk 0:01:52.6]} 17... Rb2 {[%clk 0:01:10.9]} 18. Qc1
{[%clk 0:01:42.6]} 18... Qb8 {[%clk 0:01:09.7]} 19. O-O {[%clk 0:01:35.6]} 19...
O-O {[%clk 0:00:47.3]} 20. f5 {[%clk 0:01:16.7]} 20... Qb7 {[%clk 0:00:38.8]}
21. Ra1 {[%clk 0:01:10.7]} 21... exf5 {[%clk 0:00:31.3]} 22. exf5 {[%clk
0:01:09.2]} 22... Be5 {[%clk 0:00:26.8]} 23. Ne4 {[%clk 0:01:00.1]} 23... Qb6
{[%clk 0:00:20.4]} 24. Kh1 {[%clk 0:00:54]} 24... Na5 {[%clk 0:00:19.9]} 25.
Rxa5 {[%clk 0:00:45.5]} 25... Rxd2 {[%clk 0:00:18.4]} 26. Rxe5 {[%clk
0:00:42.6]} 26... Qxe3 {[%clk 0:00:15.4]} 27. Nf6+ {[%clk 0:00:40.9]} 27... Kg7
{[%clk 0:00:13.3]} 28. Rxe3 {[%clk 0:00:40.7]} 1-0

[Event "*** Titled Tuesday Blitz"]
[Site "Chess.com"]
[Date "2020.05.19"]
[Round "9"]
[White "Chuchofrio1"]
[Black "NotFischer"]
[Result "1-0"]
[WhiteElo "2231"]
[BlackElo "2096"]
[TimeControl "180+1"]
[EndTime "13:45:57 PDT"]
[Termination "Chuchofrio1 won by resignation"]

1. d4 {[%clk 0:03:00.9]} 1... g6 {[%clk 0:02:56.5]} 2. c4 {[%clk 0:02:59.8]}
2... Bg7 {[%clk 0:02:54]} 3. e4 {[%clk 0:03:00.2]} 3... d6 {[%clk 0:02:51.3]} 4.
f4 {[%clk 0:03:00]} 4... c5 {[%clk 0:02:47.5]} 5. d5 {[%clk 0:02:59.1]} 5... Nf6
{[%clk 0:02:47.4]} 6. Nc3 {[%clk 0:02:58.4]} 6... e6 {[%clk 0:02:46.2]} 7. dxe6
{[%clk 0:02:58]} 7... Bxe6 {[%clk 0:02:39.9]} 8. Nf3 {[%clk 0:02:58.4]} 8... O-O
{[%clk 0:02:37.8]} 9. Bd3 {[%clk 0:02:58.4]} 9... Nc6 {[%clk 0:02:34.9]} 10. f5
{[%clk 0:02:57.2]} 10... Bd7 {[%clk 0:02:27]} 11. O-O {[%clk 0:02:56.9]} 11...
h6 {[%clk 0:02:13.7]} 12. fxg6 {[%clk 0:02:31.4]} 12... fxg6 {[%clk 0:02:11.3]}
13. e5 {[%clk 0:02:30.8]} 13... dxe5 {[%clk 0:01:59.9]} 14. Bxg6 {[%clk
0:02:29.9]} 14... Bg4 {[%clk 0:01:59.6]} 15. Qe1 {[%clk 0:02:18.1]} 15... Bxf3
{[%clk 0:01:54.6]} 16. Rxf3 {[%clk 0:02:17.3]} 16... Nd4 {[%clk 0:01:45]} 17.
Rg3 {[%clk 0:01:59.1]} 17... Kh8 {[%clk 0:01:24.4]} 18. Be3 {[%clk 0:01:50.1]}
18... Ng8 {[%clk 0:01:15.3]} 19. Rd1 {[%clk 0:01:32.7]} 19... Ne7 {[%clk
0:01:14]} 20. Bb1 {[%clk 0:01:30.1]} 20... Nef5 {[%clk 0:01:12]} 21. Rh3 {[%clk
0:01:05.4]} 21... Nxe3 {[%clk 0:01:05.4]} 22. Qxe3 {[%clk 0:01:05.4]} 22... Qb6
{[%clk 0:00:38.1]} 23. Qe4 {[%clk 0:01:02]} 23... Nf5 {[%clk 0:00:27]} 24. g4
{[%clk 0:00:55.2]} 24... Qg6 {[%clk 0:00:19.5]} 25. Kh1 {[%clk 0:00:52]} 25...
Rad8 {[%clk 0:00:16]} 26. Rxd8 {[%clk 0:00:47]} 26... Rxd8 {[%clk 0:00:16.9]}
27. Qxf5 {[%clk 0:00:46.7]} 27... Qxf5 {[%clk 0:00:16.1]} 28. Bxf5 {[%clk
0:00:45.2]} 28... e4 {[%clk 0:00:17]} 29. Bxe4 {[%clk 0:00:42.6]} 29... Rd2
{[%clk 0:00:16.6]} 30. Rd3 {[%clk 0:00:37.8]} 30... Rxb2 {[%clk 0:00:16.2]} 31.
Rd8+ {[%clk 0:00:37.5]} 1-0

[Event "*** Titled Tuesday Blitz"]
[Site "Chess.com"]
[Date "2020.05.19"]
[Round "9"]
[White "m-garcett"]
[Black "PauloFanha"]
[Result "0-1"]
[WhiteElo "2076"]
[BlackElo "1963"]
[TimeControl "180+1"]
[EndTime "13:45:57 PDT"]
[Termination "PauloFanha won on time"]

1. e4 {[%clk 0:03:00.9]} 1... d5 {[%clk 0:03:00.1]} 2. exd5 {[%clk 0:03:00.7]}
2... Qxd5 {[%clk 0:03:00.5]} 3. Nc3 {[%clk 0:03:01]} 3... Qd6 {[%clk 0:03:01]}
4. Bc4 {[%clk 0:02:58.6]} 4... Nf6 {[%clk 0:03:01.1]} 5. d4 {[%clk 0:02:52.7]}
5... c6 {[%clk 0:03:01.3]} 6. Be3 {[%clk 0:02:47.1]} 6... Bg4 {[%clk 0:02:58.2]}
7. f3 {[%clk 0:02:46.3]} 7... Bf5 {[%clk 0:02:57.5]} 8. Qd2 {[%clk 0:02:43.3]}
8... e6 {[%clk 0:02:55.4]} 9. O-O-O {[%clk 0:02:41.1]} 9... Qc7 {[%clk
0:02:50.4]} 10. g4 {[%clk 0:02:36.5]} 10... Bg6 {[%clk 0:02:48.2]} 11. h4 {[%clk
0:02:36.7]} 11... h5 {[%clk 0:02:40.2]} 12. g5 {[%clk 0:02:31.1]} 12... Nd5
{[%clk 0:02:36.3]} 13. Bxd5 {[%clk 0:02:10.7]} 13... cxd5 {[%clk 0:02:25.1]} 14.
Bf4 {[%clk 0:02:04.1]} 14... Qb6 {[%clk 0:02:18.9]} 15. Qe2 {[%clk 0:01:52.1]}
15... Be7 {[%clk 0:02:04]} 16. Qb5+ {[%clk 0:01:44.4]} 16... Nd7 {[%clk
0:01:58.3]} 17. Nge2 {[%clk 0:01:19.1]} 17... a6 {[%clk 0:01:52.7]} 18. Qa4
{[%clk 0:00:51]} 18... Qc6 {[%clk 0:01:48.8]} 19. Qxc6 {[%clk 0:00:29.9]} 19...
bxc6 {[%clk 0:01:48]} 20. Rhe1 {[%clk 0:00:29.9]} 20... O-O {[%clk 0:01:44.5]}
21. Bg3 {[%clk 0:00:23.8]} 21... Rfc8 {[%clk 0:01:42.6]} 22. Nf4 {[%clk
0:00:17.7]} 22... c5 {[%clk 0:01:41.3]} 23. Nxg6 {[%clk 0:00:16.6]} 23... fxg6
{[%clk 0:01:40.6]} 24. Rxe6 {[%clk 0:00:16.4]} 24... Kf7 {[%clk 0:01:32.4]} 25.
Ree1 {[%clk 0:00:08.5]} 25... Nb6 {[%clk 0:01:25.6]} 26. dxc5 {[%clk 0:00:07.7]}
26... Bxc5 {[%clk 0:01:20.4]} 27. Nxd5 {[%clk 0:00:07.7]} 27... Re8 {[%clk
0:01:14.7]} 28. Nxb6 {[%clk 0:00:06]} 28... Bxb6 {[%clk 0:01:12.2]} 29. Rxe8
{[%clk 0:00:05.3]} 29... Rxe8 {[%clk 0:01:11.3]} 30. Re1 {[%clk 0:00:04]} 30...
Rd8 {[%clk 0:01:07.2]} 31. c3 {[%clk 0:00:02.3]} 31... Rd3 {[%clk 0:01:05.6]}
0-1

[Event "*** Titled Tuesday Blitz"]
[Site "Chess.com"]
[Date "2020.05.19"]
[Round "9"]
[White "petrkostenko"]
[Black "ChelsieMonica"]
[Result "1-0"]
[WhiteElo "2541"]
[BlackElo "2365"]
[TimeControl "180+1"]
[EndTime "13:45:59 PDT"]
[Termination "petrkostenko won by checkmate"]

1. e4 {[%clk 0:03:00.9]} 1... e5 {[%clk 0:02:56.7]} 2. Nf3 {[%clk 0:03:00.9]}
2... Nc6 {[%clk 0:02:57]} 3. Bc4 {[%clk 0:03:00.9]} 3... Bc5 {[%clk 0:02:57.2]}
4. c3 {[%clk 0:03:00.6]} 4... Nf6 {[%clk 0:02:57.5]} 5. d3 {[%clk 0:03:01.2]}
5... O-O {[%clk 0:02:57.5]} 6. Nbd2 {[%clk 0:03:00.2]} 6... h6 {[%clk
0:02:54.8]} 7. h3 {[%clk 0:03:00.2]} 7... a5 {[%clk 0:02:53.4]} 8. Bb3 {[%clk
0:02:59.4]} 8... Re8 {[%clk 0:02:37.2]} 9. Nh2 {[%clk 0:02:54.9]} 9... d5 {[%clk
0:02:36.3]} 10. exd5 {[%clk 0:02:42.4]} 10... Nxd5 {[%clk 0:02:34.3]} 11. Ne4
{[%clk 0:02:43.1]} 11... Bb6 {[%clk 0:02:29.3]} 12. Bxh6 {[%clk 0:02:35.4]}
12... Nf4 {[%clk 0:02:14.6]} 13. Bxf4 {[%clk 0:02:31.3]} 13... exf4 {[%clk
0:02:14.9]} 14. O-O {[%clk 0:02:28.5]} 14... Bf5 {[%clk 0:02:14.6]} 15. Re1
{[%clk 0:02:24.3]} 15... Qh4 {[%clk 0:01:55.8]} 16. Nf3 {[%clk 0:02:18.9]} 16...
Qh6 {[%clk 0:01:54.9]} 17. Neg5 {[%clk 0:02:11.3]} 17... Rf8 {[%clk 0:01:47.8]}
18. d4 {[%clk 0:01:56.3]} 18... Rad8 {[%clk 0:01:41.1]} 19. Qd2 {[%clk
0:01:55.2]} 19... Qd6 {[%clk 0:01:27.2]} 20. Rad1 {[%clk 0:01:52]} 20... Bg6
{[%clk 0:01:21.6]} 21. Nh4 {[%clk 0:01:50.3]} 21... Bh5 {[%clk 0:00:26.1]} 22.
Rc1 {[%clk 0:01:44.1]} 22... Kh8 {[%clk 0:00:25]} 23. Ne4 {[%clk 0:01:39.3]}
23... Qh6 {[%clk 0:00:23.5]} 24. Nf5 {[%clk 0:01:34.6]} 24... Qh7 {[%clk
0:00:23.8]} 25. Qxf4 {[%clk 0:01:34]} 25... Bg6 {[%clk 0:00:24.1]} 26. Ng5
{[%clk 0:01:29.5]} 26... Qh5 {[%clk 0:00:22.7]} 27. g4 {[%clk 0:01:26.1]} 27...
f6 {[%clk 0:00:02.2]} 28. gxh5 {[%clk 0:01:20.3]} 28... fxg5 {[%clk 0:00:03.1]}
29. Qxg5 {[%clk 0:01:16.8]} 29... Bxf5 {[%clk 0:00:03.8]} 30. Re3 {[%clk
0:01:09.8]} 30... Rd6 {[%clk 0:00:04]} 31. Rg3 {[%clk 0:01:09]} 31... g6 {[%clk
0:00:04]} 32. Kh2 {[%clk 0:01:07.3]} 32... Nd8 {[%clk 0:00:02.6]} 33. Qh6#
{[%clk 0:01:04.7]} 1-0